bitfinex-derivatives/quotes_BTCF0:USTF0_20250405
["timestamp","ask_amount","ask_price","bid_price","bid_amount"]
[1743852296494,0.12438402,83783.0,83782.0,0.0835735]
[1743852296694,0.12438402,83783.0,83782.0,0.1478135]
[1743852297087,0.12438402,83783.0,83782.0,0.5086135]
[1743852297794,0.12422402,83783.0,83782.0,0.5086135]
[1743852301499,0.14848219,83783.0,83782.0,0.5086135]
[1743852306591,0.14848219,83783.0,83782.0,0.1478135]
[1743852311296,0.11698219,83783.0,83782.0,0.1478135]
[1743852311696,0.05144,83786.0,83783.0,0.1253562]
[1743852311906,0.1350115,83786.0,83785.0,0.0835705]
[1743852312097,0.1766763,83786.0,83785.0,0.0845305]
[1743852312298,0.20048997,83786.0,83785.0,0.1472305]
[1743852315810,0.20924302,83786.0,83785.0,0.1472305]
[1743852317104,0.20889312,83786.0,83785.0,0.1472305]
[1743852326314,0.12567152,83786.0,83785.0,0.1472305]
[1743852330320,0.07435152,83786.0,83785.0,0.1472305]
[1743852330519,0.12567152,83786.0,83785.0,0.1472305]
[1743852333321,0.07435152,83786.0,83785.0,0.1472305]
[1743852333523,0.12567152,83786.0,83785.0,0.1472305]
[1743852336125,0.07435152,83786.0,83785.0,0.1472305]
[1743852336320,0.12567152,83786.0,83785.0,0.1472305]
[1743852343933,0.07435152,83786.0,83785.0,0.1472305]
[1743852352943,0.07435152,83786.0,83785.0,0.06366]
[1743852353648,0.07435152,83786.0,83785.0,0.1472305]
[1743852355248,0.12567152,83786.0,83785.0,0.1472305]
[1743852355546,0.07435152,83786.0,83785.0,0.1472305]
[1743852355747,0.12563152,83786.0,83785.0,0.1472305]
[1743852357352,0.12563152,83786.0,83785.0,0.06366]
[1743852358254,0.12563152,83786.0,83785.0,0.1472305]
[1743852358755,0.03256672,83786.0,83785.0,0.1472305]
[1743852358945,0.05128,83787.0,83786.0,0.0835695]
[1743852359149,0.08123333,83787.0,83786.0,0.1466695]
[1743852359362,0.08123333,83787.0,83786.0,0.1783695]
[1743852359756,0.09000875,83787.0,83786.0,0.1783695]
[1743852360265,0.17357725,83787.0,83786.0,0.1783695]
[1743852362158,0.03872875,83787.0,83786.0,0.1783695]
[1743852362458,0.0835685,83787.0,83786.0,0.1783695]
[1743852364151,0.12213817,83787.0,83786.0,0.1783695]
[1743852364853,0.03856967,83787.0,83786.0,0.1783695]
[1743852365058,0.0835685,83787.0,83786.0,0.1783695]
[1743852368772,0.12219873,83787.0,83786.0,0.1783695]
[1743852369272,0.05128,83791.0,83786.0,0.2201536]
[1743852370375,0.05128,83791.0,83788.0,0.125349]
[1743852370573,0.05128,83791.0,83789.0,0.1487655]
[1743852370870,0.05128,83791.0,83789.0,0.232331]
[1743852371177,0.00879755,83791.0,83789.0,0.1497255]
[1743852371373,0.51528055,83792.0,83789.0,0.2332918]
[1743852371564,0.51528055,83792.0,83789.0,0.1915083]
[1743852371766,0.64062795,83792.0,83791.0,0.0835645]
[1743852372068,0.67100371,83792.0,83791.0,0.0846045]
[1743852372269,0.67100371,83792.0,83791.0,0.1454045]
[1743852372474,0.58743821,83792.0,83791.0,0.1454045]
[1743852374873,0.54565631,83792.0,83791.0,0.1454045]
[1743852375172,0.62921981,83792.0,83791.0,0.1454045]
[1743852375575,0.57793981,83792.0,83791.0,0.1454045]
[1743852375876,0.62921981,83792.0,83791.0,0.1454045]
[1743852376277,0.63792103,83792.0,83791.0,0.1454045]
[1743852376573,0.50307753,83792.0,83791.0,0.1454045]
[1743852376780,0.49402641,83792.0,83791.0,0.1454045]
[1743852379471,0.03037576,83792.0,83791.0,0.1454045]
[1743852379668,0.4128,83794.0,83793.0,0.0835625]
[1743852380177,0.4128,83794.0,83793.0,0.1462225]
[1743852381379,0.00016,83795.0,83794.0,0.0835615]
[1743852381568,0.00016,83795.0,83794.0,0.1150215]
[1743852381772,0.00016,83795.0,83794.0,0.1456215]
[1743852382979,0.693117,83799.0,83798.0,0.0835576]
[1743852383469,0.693117,83799.0,83798.0,0.1761176]
[1743852383665,0.72377208,83799.0,83798.0,0.1770776]
[1743852383864,0.72377208,83799.0,83798.0,0.1761176]
[1743852386183,0.64021508,83799.0,83798.0,0.1761176]
[1743852388183,0.64937299,83799.0,83798.0,0.1761176]
[1743852389283,0.73292959,83799.0,83798.0,0.1761176]
[1743852389483,0.73292959,83799.0,83798.0,0.1661176]
[1743852391285,0.64937299,83799.0,83798.0,0.1661176]
[1743852391785,0.73292959,83799.0,83798.0,0.1661176]
[1743852392590,0.73292959,83799.0,83798.0,0.1346576]
[1743852393084,0.73292959,83799.0,83798.0,0.1356976]
[1743852393286,0.64937299,83799.0,83798.0,0.1356976]
[1743852393585,0.73292959,83799.0,83798.0,0.1356976]
[1743852393887,0.64937299,83799.0,83798.0,0.1356976]
[1743852396175,0.05981299,83799.0,83798.0,0.1356976]
[1743852396375,0.02,83799.0,83798.0,0.06214]
[1743852396580,0.02,83799.0,83798.0,0.1456976]
[1743852401890,0.05756426,83799.0,83798.0,0.1456976]
[1743852402483,0.05756426,83799.0,83798.0,0.13901352]
[1743852402791,0.14112086,83799.0,83798.0,0.13901352]
[1743852403186,0.46014276,83799.0,83788.0,0.0417835]
[1743852403392,0.0835618,83794.0,83786.0,0.0417846]
[1743852403589,0.0373,83793.0,83792.0,0.0835626]
[1743852405091,0.1208625,83793.0,83792.0,0.0835626]
[1743852405290,0.1215025,83793.0,83792.0,0.0842026]
[1743852406489,0.1215025,83793.0,83792.0,0.1460026]
[1743852407093,0.03794,83793.0,83792.0,0.1460026]
[1743852408192,0.1215025,83793.0,83792.0,0.1460026]
[1743852410795,0.1215025,83793.0,83792.0,0.06244]
[1743852410983,0.1215025,83793.0,83792.0,0.1460035]
[1743852414784,0.1215025,83793.0,83792.0,0.06244]
[1743852420293,0.1160025,83793.0,83792.0,0.06244]
[1743852424707,0.0842025,83793.0,83792.0,0.1460035]
[1743852424901,0.00064,83793.0,83792.0,0.1795035]
[1743852425595,0.0842025,83793.0,83792.0,0.1795035]
[1743852426201,0.0842025,83793.0,83792.0,0.09594]
[1743852426503,0.0417817,83792.0,83788.0,8e-05]
[1743852426705,0.1076817,83792.0,83788.0,0.00068]
[1743852426905,0.0633,83791.0,83788.0,0.00068]
[1743852427209,0.06398,83791.0,83788.0,0.0006]
[1743852427407,0.03108,83791.0,83788.0,0.0006]
[1743852428509,0.03108,83791.0,83788.0,0.0649]
[1743852430416,0.0835665,83789.0,83788.0,0.0649]
[1743852430621,0.0842865,83789.0,83788.0,0.0649]
[1743852431321,0.4970865,83789.0,83788.0,0.0643]
[1743852431717,0.0835749,83781.0,83778.0,0.36097904]
[1743852431915,0.00068,83781.0,83780.0,0.0835755]
[1743852432112,0.0835723,83784.0,83780.0,0.0006]
[1743852432314,0.00068,83784.0,83783.0,0.0835725]
[1743852432513,0.00068,83784.0,83783.0,0.0842525]
[1743852433122,0.00068,83784.0,83783.0,0.1159525]
[1743852434423,0.00068,83784.0,83783.0,0.0767525]
[1743852434723,0.00068,83784.0,83783.0,0.0737525]
[1743852434922,0.00068,83784.0,83783.0,0.09628]
[1743852435219,0.00068,83784.0,83783.0,0.1798525]
[1743852435918,0.00068,83784.0,83783.0,0.1788525]
[1743852436126,0.00068,83784.0,83783.0,0.1794525]
[1743852437521,0.0003301,83784.0,83783.0,0.1794525]
[1743852446733,0.0839016,83784.0,83783.0,0.01415272]
[1743852446927,0.1166016,83784.0,83783.0,0.01415272]
[1743852447130,0.1475016,83784.0,83783.0,0.01415272]
[1743852447632,0.1799016,83784.0,83783.0,0.01415272]
[1743852451929,0.0417873,83781.0,83779.0,8e-05]
[1743852452136,0.0417873,83781.0,83779.0,0.00104]
[1743852452137,0.09398731,83781.0,83779.0,0.00104]
[1743852452336,0.09398731,83781.0,83779.0,0.00096]
[1743852454936,0.09398731,83781.0,83779.0,0.0845356]
[1743852455232,0.05228001,83781.0,83780.0,0.0835755]
[1743852455440,0.05220001,83781.0,83780.0,0.1162755]
[1743852457638,0.05220001,83781.0,83780.0,0.1499755]
[1743852460130,0.13577451,83781.0,83780.0,0.1499755]
[1743852460337,0.13577451,83781.0,83780.0,0.1172755]
[1743852460537,0.54857451,83781.0,83780.0,0.1172755]
[1743852461541,0.46500001,83781.0,83780.0,0.1172755]
[1743852462639,0.46500001,83781.0,83780.0,0.1483755]
[1743852465138,0.49840001,83781.0,83780.0,0.1483755]
[1743852465839,0.53150001,83781.0,83780.0,0.1483755]
[1743852467035,0.61507451,83781.0,83780.0,0.1483755]
[1743852468245,0.97587451,83781.0,83780.0,0.1483755]
[1743852468843,0.97587451,83781.0,83780.0,0.1172755]
[1743852469051,0.0835762,83780.0,83778.0,0.0835768]
[1743852469237,0.0845762,83780.0,83778.0,0.0835768]
[1743852469436,0.0653,83779.0,83778.0,0.0835768]
[1743852469743,0.06626001,83779.0,83778.0,0.0835768]
[1743852469945,0.0835775,83778.0,83777.0,0.1253673]
[1743852470248,0.0835775,83778.0,83777.0,0.0417892]
[1743852470249,0.03174001,83778.0,83777.0,0.0417892]
[1743852470448,0.06374001,83778.0,83777.0,0.0417892]
[1743852471750,0.21937462,83778.0,83776.0,0.0835791]
[1743852472042,0.0653,83777.0,83776.0,0.0835791]
[1743852472248,0.06626001,83777.0,83776.0,0.0835791]
[1743852473252,0.06626001,83777.0,83776.0,0.0935791]
[1743852475655,0.03296001,83777.0,83776.0,0.0935791]
[1743852480052,0.03296001,83777.0,83776.0,0.031]
[1743852480251,0.03296001,83777.0,83776.0,0.1145791]
[1743852482166,0.03296001,83777.0,83776.0,0.1145795]
[1743852483460,0.03296001,83777.0,83776.0,0.1465795]
[1743852484661,0.03296001,83777.0,83776.0,0.063]
[1743852484861,0.03296001,83777.0,83776.0,0.1465795]
[1743852486573,0.11653851,83777.0,83776.0,0.1465795]
[1743852490266,0.03296001,83777.0,83776.0,0.1465795]
[1743852497568,0.03261011,83777.0,83776.0,0.1465795]
[1743852504874,0.03261011,83777.0,83776.0,0.1242384]
[1743852506276,0.03261011,83777.0,83776.0,0.1132384]
[1743852507275,0.11618861,83777.0,83776.0,0.1132384]
[1743852508163,0.03261011,83777.0,83776.0,0.1132384]
[1743852508875,0.08385011,83777.0,83776.0,0.1132384]
[1743852509475,0.08385011,83777.0,83776.0,0.0912384]
[1743852509778,0.11985011,83777.0,83776.0,0.0882384]
[1743852513782,0.20342861,83777.0,83775.0,0.0835799]
[1743852514078,0.1561795,83776.0,83775.0,0.0835799]
[1743852514281,0.15721951,83776.0,83775.0,0.0835799]
[1743852514481,0.07364001,83776.0,83775.0,0.0835799]
[1743852515480,0.15721951,83776.0,83775.0,0.0835799]
[1743852515680,0.12061951,83776.0,83775.0,0.0835799]
[1743852517185,0.12061951,83776.0,83775.0,0.0625799]
[1743852517768,0.12061951,83776.0,83775.0,0.0565799]
[1743852517973,0.0417902,83775.0,83767.0,0.0417941]
[1743852518180,0.0417907,83774.0,83762.0,0.3608]
[1743852518382,0.0835836,83772.0,83771.0,0.0835845]
[1743852518572,0.08454361,83772.0,83769.0,0.0836657]
[1743852518773,0.1180845,83771.0,83770.0,0.03697904]
[1743852518982,0.03554001,83771.0,83770.0,0.12056454]
[1743852520682,0.03554001,83771.0,83770.0,0.15656454]
[1743852522383,0.00104001,83771.0,83770.0,0.15656454]
[1743852525882,0.03774001,83771.0,83770.0,0.15656454]
[1743852531290,0.03774001,83771.0,83770.0,0.11976454]
[1743852533592,0.03774001,83771.0,83770.0,0.15466454]
[1743852546599,0.07394001,83771.0,83770.0,0.15466454]
[1743852555105,0.07394001,83771.0,83770.0,0.11629928]
[1743852555606,0.07394001,83771.0,83770.0,0.01629928]
[1743852555793,0.07394001,83771.0,83770.0,0.0835855]
[1743852557316,0.07359011,83771.0,83770.0,0.0835855]
[1743852558719,0.07359011,83771.0,83769.0,0.0671712]
[1743852558916,0.00069011,83771.0,83770.0,0.0373]
[1743852559220,0.00069011,83771.0,83770.0,0.1208855]
[1743852560315,0.00069011,83771.0,83770.0,0.1214855]
[1743852560518,0.00069011,83771.0,83770.0,0.0006]
[1743852560717,0.00069011,83771.0,83770.0,0.0835855]
[1743852560917,0.00069011,83771.0,83770.0,0.0844655]
[1743852561616,0.00069011,83771.0,83770.0,0.1216655]
[1743852562122,0.00069011,83771.0,83770.0,0.1596655]
[1743852562822,0.00069011,83771.0,83770.0,0.0596655]
[1743852563224,0.00069011,83771.0,83770.0,0.143251]
[1743852563422,0.00069011,83771.0,83770.0,0.143931]
[1743852565116,0.00069011,83771.0,83770.0,0.043931]
[1743852565316,0.00069011,83771.0,83770.0,0.043251]
[1743852567327,0.00069011,83771.0,83770.0,0.0835855]
[1743852568018,0.00069011,83771.0,83770.0,0.1052855]
[1743852568223,0.00069011,83771.0,83770.0,0.0835855]
[1743852573420,0.00069011,83771.0,83770.0,0.1052855]
[1743852575925,0.04019011,83771.0,83770.0,0.1052855]
[1743852576225,0.04019011,83771.0,83770.0,0.0052855]
[1743852576425,0.04019011,83771.0,83770.0,0.0835855]
[1743852577631,0.04019011,83771.0,83769.0,0.0671712]
[1743852577824,0.0388,83770.0,83769.0,0.0671712]
[1743852578026,0.03992001,83770.0,83769.0,0.0671712]
[1743852585034,0.03992001,83770.0,83767.0,0.0417939]
[1743852585333,0.0384,83769.0,83768.0,0.1253812]
[1743852586234,0.03952001,83769.0,83768.0,0.1253812]
[1743852586530,0.03952001,83769.0,83768.0,0.0253812]
[1743852587133,0.03952001,83769.0,83768.0,0.1089687]
[1743852594342,0.03952001,83769.0,83768.0,0.0835875]
[1743852594533,0.03952001,83769.0,83768.0,0.1253812]
[1743852610655,0.02692001,83769.0,83768.0,0.1253812]
[1743852617960,0.02657011,83769.0,83768.0,0.1253812]
[1743852627755,0.0254501,83769.0,83768.0,0.1253812]
[1743852628962,0.0254501,83769.0,83768.0,0.1700812]
[1743852629162,0.0254501,83769.0,83768.0,0.2156812]
[1743852630061,0.0254501,83769.0,83768.0,0.2163612]
[1743852633467,0.0254501,83769.0,83768.0,0.5771612]
[1743852636163,0.0254501,83769.0,83768.0,0.5621612]
[1743852640859,0.0254501,83769.0,83768.0,0.2013612]
[1743852641055,0.0254501,83769.0,83768.0,0.4718612]
[1743852645273,0.02657011,83769.0,83768.0,0.4718612]
[1743852645462,0.07587011,83769.0,83768.0,0.4718612]
[1743852648765,0.07587011,83769.0,83768.0,0.46858873]
[1743852650275,0.07587011,83769.0,83768.0,0.51388873]
[1743852651575,0.07587011,83769.0,83768.0,0.15308873]
[1743852651777,0.07587011,83769.0,83768.0,0.51388873]
[1743852653377,0.07587011,83769.0,83768.0,0.15308873]
[1743852653579,0.07587011,83769.0,83768.0,0.51388873]
[1743852654278,0.07587011,83769.0,83768.0,0.15308873]
[1743852654479,0.07587011,83769.0,83768.0,0.51388873]
[1743852656778,0.07587011,83769.0,83768.0,0.46858873]
[1743852657281,0.07587011,83769.0,83768.0,0.10778873]
[1743852657480,0.07587011,83769.0,83768.0,0.46858873]
[1743852660587,0.07587011,83769.0,83768.0,0.10778873]
[1743852662280,0.07587011,83769.0,83768.0,0.10398524]
[1743852676697,0.07552021,83769.0,83768.0,0.10398524]
[1743852678486,0.07552021,83769.0,83768.0,0.15198524]
[1743852681199,0.02622021,83769.0,83768.0,0.20158524]
[1743852691407,0.0251002,83769.0,83768.0,0.20158524]
[1743852694013,0.02622021,83769.0,83768.0,0.20158524]
[1743852695713,0.02622021,83769.0,83768.0,0.56238524]
[1743852697417,0.02622021,83769.0,83768.0,0.20158524]
[1743852697612,0.02622021,83769.0,83768.0,0.56238524]
[1743852697817,0.02622021,83769.0,83768.0,0.51278524]
[1743852700621,0.02622021,83769.0,83768.0,0.46478524]
[1743852711431,0.07205711,83780.0,83769.0,0.0417931]
[1743852711730,0.0835767,83779.0,83778.0,0.1253652]
[1743852712030,0.0417874,83781.0,83780.0,0.0835755]
[1743852712236,0.0417858,83784.0,83783.0,0.1253577]
[1743852713116,0.0835703,83786.0,83785.0,0.1253547]
[1743852714430,0.0930229,83790.0,83785.0,0.4861547]
[1743852714631,0.0835703,83786.0,83785.0,0.4861547]
[1743852715024,0.1360703,83786.0,83785.0,0.4867547]
[1743852716231,0.05116,83792.0,83785.0,0.4867547]
[1743852716534,0.1323703,83786.0,83785.0,0.4867547]
[1743852716730,0.1330103,83786.0,83785.0,0.4867547]
[1743852717534,0.04944,83786.0,83785.0,0.4867547]
[1743852719636,0.15294,83786.0,83785.0,0.4867547]
[1743852727439,0.04944,83786.0,83785.0,0.4867547]
[1743852727646,0.04565495,83796.0,83786.0,0.0417844]
[1743852727842,0.04625496,83796.0,83795.0,0.4443605]
[1743852728042,0.04617496,83796.0,83795.0,0.4443605]
[1743852728236,0.04617496,83796.0,83795.0,0.6027605]
[1743852728539,0.04617496,83796.0,83795.0,0.6033605]
[1743852728840,0.04557495,83796.0,83795.0,0.6027605]
[1743852733345,0.04617496,83796.0,83795.0,0.6033605]
[1743852733847,0.04617496,83796.0,83795.0,0.2425605]
[1743852734247,0.04617496,83796.0,83795.0,0.6033605]
[1743852737149,0.00060001,83796.0,83795.0,0.6033605]
[1743852737347,0.0487,83797.0,83796.0,0.0835595]
[1743852737540,0.0483501,83797.0,83796.0,0.0841995]
[1743852737740,0.0483501,83797.0,83796.0,0.1860995]
[1743852739849,0.07205711,83805.0,83801.0,0.0417769]
[1743852740049,0.12525711,83811.0,83810.0,0.0835456]
[1743852740248,0.05384,83811.0,83810.0,0.1872456]
[1743852740443,0.05384,83811.0,83810.0,0.1878856]
[1743852740953,0.1373846,83811.0,83810.0,0.1350856]
[1743852741451,0.1373846,83811.0,83810.0,0.1344456]
[1743852743353,0.1373846,83811.0,83810.0,0.1350456]
[1743852744352,0.14621352,83811.0,83810.0,0.1350456]
[1743852744853,0.16613741,83811.0,83810.0,0.1350456]
[1743852745054,0.21963741,83811.0,83810.0,0.0515]
[1743852745255,0.2267002,83811.0,83810.0,0.0515]
[1743852745450,0.2267002,83811.0,83810.0,0.0509]
[1743852745647,0.0835506,83805.0,83804.0,0.27666913]
[1743852745853,0.0835506,83805.0,83804.0,0.21526913]
[1743852746048,0.2387706,83805.0,83804.0,0.21586913]
[1743852746253,0.24583339,83805.0,83804.0,0.21526913]
[1743852748950,0.24583339,83805.0,83804.0,0.0006]
[1743852749162,0.0835526,83803.0,83802.0,0.00017904]
[1743852749356,0.0843526,83803.0,83802.0,0.00085904]
[1743852749558,0.1892526,83803.0,83802.0,0.08441264]
[1743852749858,0.1892526,83803.0,83802.0,0.00085904]
[1743852750160,0.19631539,83803.0,83802.0,0.00085904]
[1743852750660,0.19631539,83803.0,83802.0,0.08441264]
[1743852750961,0.19631539,83803.0,83802.0,0.00085904]
[1743852751460,0.19631539,83803.0,83802.0,0.08441264]
[1743852752559,0.19631539,83803.0,83802.0,0.00085904]
[1743852753463,0.0835668,83789.0,83788.0,8e-05]
[1743852753758,0.3608,83789.0,83788.0,0.0835675]
[1743852753963,0.44532651,83789.0,83788.0,0.1378675]
[1743852754268,0.4523893,83789.0,83788.0,0.1378675]
[1743852754564,0.3688228,83789.0,83788.0,0.1378675]
[1743852757365,0.0080228,83789.0,83788.0,0.1378675]
[1743852758766,0.0080228,83789.0,83788.0,0.1885675]
[1743852762770,0.0080228,83789.0,83788.0,0.2428675]
[1743852763973,0.01119508,83789.0,83788.0,0.2428675]
[1743852764175,0.01023507,83789.0,83788.0,0.2428675]
[1743852767268,0.01023507,83789.0,83788.0,0.1378675]
[1743852767775,0.01119508,83789.0,83788.0,0.1378675]
[1743852768170,0.01119508,83789.0,83788.0,0.1882675]
[1743852770777,0.06429508,83789.0,83788.0,0.1882675]
[1743852771463,0.11679508,83789.0,83788.0,0.1882675]
[1743852775384,0.06429508,83789.0,83788.0,0.1882675]
[1743852781679,0.01119508,83789.0,83788.0,0.1882675]
[1743852781987,0.01023507,83789.0,83788.0,0.1882675]
[1743852790591,0.0524,83796.0,83788.0,0.1882675]
[1743852790896,0.05344001,83796.0,83795.0,0.07169478]
[1743852791098,0.05344001,83796.0,83795.0,0.07273478]
[1743852791395,0.05344001,83796.0,83795.0,0.58633478]
[1743852796106,0.05344001,83796.0,83795.0,0.43353478]
[1743852796408,0.10704001,83796.0,83795.0,0.43353478]
[1743852796705,0.10669011,83796.0,83795.0,0.43353478]
[1743852797909,0.15879011,83796.0,83795.0,0.43353478]
[1743852798507,0.15879011,83796.0,83795.0,0.48313478]
[1743852798807,0.15879011,83796.0,83795.0,0.53683478]
[1743852799708,0.16042076,83796.0,83795.0,0.53683478]
[1743852802609,0.05472076,83796.0,83795.0,0.53683478]
[1743852806617,0.05472076,83796.0,83795.0,0.17603478]
[1743852809019,0.05635141,83796.0,83795.0,0.17603478]
[1743852810222,0.05635141,83796.0,83795.0,0.12233478]
[1743852810418,0.10965141,83796.0,83793.0,0.22315]
[1743852810620,0.0835709,83785.0,83781.0,0.0835738]
[1743852810814,0.1522,83784.0,83780.0,0.08375444]
[1743852811014,0.15344001,83784.0,83780.0,0.08375424]
[1743852811221,0.0032613,83782.0,83781.0,0.0835745]
[1743852811515,0.0032613,83782.0,83781.0,0.0655745]
[1743852811819,0.083579,83777.0,83765.0,0.0417951]
[1743852812009,0.3608,83776.0,83764.0,0.0955955]
[1743852812212,0.3608,83768.0,83760.0,0.0417972]
[1743852812514,0.15322,83767.0,83764.0,0.0417953]
[1743852812721,0.15446001,83767.0,83766.0,0.0835895]
[1743852813218,0.15772131,83767.0,83766.0,0.0835895]
[1743852814324,0.0835904,83766.0,83759.0,0.0835959]
[1743852814714,0.053,83765.0,83758.0,0.0497]
[1743852814915,0.053,83765.0,83764.0,0.0835915]
[1743852815115,0.05424001,83765.0,83764.0,0.0835915]
[1743852815316,0.05750131,83765.0,83764.0,0.0835915]
[1743852816825,0.05750131,83765.0,83760.0,0.0417976]
[1743852817025,0.3608,83761.0,83758.0,0.0914984]
[1743852817223,0.0509,83760.0,83759.0,0.1253947]
[1743852817426,0.0541613,83760.0,83759.0,0.1253947]
[1743852817724,0.0554413,83760.0,83759.0,0.1253947]
[1743852818323,0.0554413,83760.0,83759.0,0.0417982]
[1743852818717,0.06422241,83760.0,83757.0,0.00017904]
[1743852818919,0.0417982,83759.0,83751.0,0.000597]
[1743852819129,0.0836007,83755.0,83754.0,8e-05]
[1743852819318,0.0418012,83753.0,83746.0,0.0515]
[1743852819625,0.083615,83741.0,83733.0,0.07471646]
[1743852819827,0.3608,83734.0,83733.0,0.0836224]
[1743852820129,0.3608,83734.0,83731.0,0.041812]
[1743852820438,0.0541613,83733.0,83729.0,0.00017904]
[1743852820620,0.05540131,83733.0,83729.0,0.00017904]
[1743852820820,0.0418117,83732.0,83729.0,0.00017904]
[1743852821023,0.04305171,83732.0,83729.0,0.00017904]
[1743852821219,0.0509,83731.0,83715.0,0.00059726]
[1743852821530,0.3608,83716.0,83715.0,0.00059726]
[1743852821724,0.3608,83716.0,83715.0,0.08423766]
[1743852822429,0.3640613,83716.0,83715.0,0.13833766]
[1743852823622,0.36530131,83716.0,83715.0,0.13833766]
[1743852824024,0.37408508,83716.0,83715.0,0.13833766]
[1743852826232,0.01328508,83716.0,83715.0,0.13833766]
[1743852826536,0.42348508,83716.0,83715.0,0.13833766]
[1743852827327,0.42348508,83716.0,83715.0,0.08423766]
[1743852827536,0.0836406,83715.0,83714.0,0.0836411]
[1743852827831,0.0836414,83714.0,83713.0,8e-05]
[1743852828031,0.0418218,83712.0,83699.0,0.0418279]
[1743852828217,0.0418218,83712.0,83694.0,0.0493]
[1743852828218,0.3608,83705.0,83704.0,0.0837314]
[1743852828423,0.41204,83705.0,83704.0,0.0836514]
[1743852828637,0.4153013,83705.0,83704.0,0.0836514]
[1743852829226,0.5193013,83705.0,83704.0,0.0836514]
[1743852830025,0.5206213,83705.0,83704.0,0.0836514]
[1743852831830,0.5208613,83705.0,83704.0,0.0836514]
[1743852834939,0.1600613,83705.0,83704.0,0.0836514]
[1743852835140,0.5208613,83705.0,83704.0,0.0836514]
[1743852836741,0.1600613,83705.0,83704.0,0.0836514]
[1743852836928,0.5208613,83705.0,83704.0,0.0836514]
[1743852838930,0.1600613,83705.0,83704.0,0.0836514]
[1743852839131,0.5208613,83705.0,83704.0,0.0836514]
[1743852839839,0.1600613,83705.0,83704.0,0.0836514]
[1743852840038,0.5208613,83705.0,83704.0,0.0836514]
[1743852843546,0.4693813,83705.0,83704.0,0.0836514]
[1743852843843,0.5207813,83705.0,83704.0,0.0836514]
[1743852850450,0.4669813,83705.0,83704.0,0.1862514]
[1743852851657,0.4155813,83705.0,83704.0,0.1862514]
[1743852851840,0.4670213,83705.0,83704.0,0.1862514]
[1743852852753,0.4670213,83705.0,83704.0,0.2354514]
[1743852853454,0.4155813,83705.0,83704.0,0.2354514]
[1743852854352,0.4671013,83705.0,83704.0,0.2354514]
[1743852857154,0.4667514,83705.0,83704.0,0.2354514]
[1743852858943,0.4152314,83705.0,83704.0,0.2354514]
[1743852859147,0.3650314,83705.0,83704.0,0.2354514]
[1743852863461,0.4486818,83705.0,83704.0,0.0836514]
[1743852863661,0.0836514,83704.0,83703.0,0.0836521]
[1743852863851,0.1970514,83704.0,83703.0,0.0836521]
[1743852864051,0.1134,83704.0,83703.0,0.0836521]
[1743852864246,0.1163114,83704.0,83703.0,0.0836521]
[1743852865162,0.11755141,83704.0,83703.0,0.0836521]
[1743852868165,0.47835141,83704.0,83703.0,0.0836521]
[1743852869063,0.47835141,83704.0,83699.0,0.00032]
[1743852869064,0.0836544,83701.0,83699.0,0.00032]
[1743852869257,0.0418294,83697.0,83689.0,0.31700828]
[1743852869565,0.2972196,83696.0,83695.0,0.0836604]
[1743852870358,0.300131,83696.0,83695.0,0.0836604]
[1743852870556,0.2164714,83696.0,83695.0,0.0836604]
[1743852871655,0.21771141,83696.0,83695.0,0.0836604]
[1743852872167,0.0836615,83694.0,83691.0,0.0418317]
[1743852872370,0.1183114,83693.0,83692.0,0.1254951]
[1743852874774,0.11955141,83693.0,83692.0,0.1254951]
[1743852887781,0.11955141,83693.0,83692.0,0.12134638]
[1743852888774,0.48035141,83693.0,83692.0,0.12134638]
[1743852889877,0.48035141,83693.0,83692.0,0.11234437]
[1743852892980,0.53175141,83693.0,83692.0,0.11234437]
[1743852893382,0.17095141,83693.0,83692.0,0.11234437]
[1743852893681,0.53175141,83693.0,83692.0,0.11234437]
[1743852895378,0.17095141,83693.0,83692.0,0.11234437]
[1743852895795,0.53175141,83693.0,83692.0,0.11234437]
[1743852897598,0.17095141,83693.0,83692.0,0.11234437]
[1743852897898,0.53175141,83693.0,83692.0,0.11234437]
[1743852901298,0.57358281,83693.0,83691.0,0.0836634]
[1743852901505,0.0029114,83692.0,83691.0,0.0836634]
[1743852901690,0.08781481,83692.0,83691.0,0.0836634]
[1743852902005,0.11605141,83692.0,83691.0,0.0836634]
[1743852902496,0.11605141,83692.0,83691.0,0.1384634]
[1743852904794,0.11605141,83692.0,83691.0,0.0548]
[1743852905800,0.11605141,83692.0,83691.0,0.1384644]
[1743852906400,0.47685141,83692.0,83691.0,0.1384644]
[1743852908200,0.47685141,83692.0,83691.0,0.0836644]
[1743852908796,0.56051501,83692.0,83690.0,0.0584]
[1743852909003,0.1384644,83691.0,83689.0,0.0963331]
[1743852909193,0.13970441,83691.0,83690.0,0.0836654]
[1743852909394,0.13970441,83691.0,83689.0,0.1381664]
[1743852909594,0.0029114,83690.0,83689.0,0.1381664]
[1743852910301,0.3637114,83690.0,83689.0,0.1381664]
[1743852910797,0.3637114,83690.0,83688.0,0.0584]
[1743852911098,0.3637114,83690.0,83689.0,0.0836664]
[1743852911304,0.4055441,83690.0,83687.0,0.0836684]
[1743852911503,0.0029114,83689.0,83687.0,0.0836684]
[1743852911801,0.0418337,83688.0,83684.0,0.0839911]
[1743852912001,0.0418337,83688.0,83685.0,0.08367]
[1743852912303,0.0418337,83688.0,83686.0,0.083669]
[1743852912693,0.0029114,83687.0,83686.0,0.083669]
[1743852913203,0.0029114,83687.0,83685.0,0.0836696]
[1743852913595,0.0029114,83686.0,83685.0,0.0836696]
[1743852917105,0.3637114,83686.0,83685.0,0.0836696]
[1743852920907,0.5137114,83686.0,83636.0,0.3608]
[1743852921208,0.3608,83659.0,83658.0,0.0836974]
[1743852921402,0.41244,83659.0,83658.0,0.1400974]
[1743852921603,0.43457465,83659.0,83658.0,0.1400974]
[1743852921900,0.43748605,83659.0,83658.0,0.0564]
[1743852922296,0.43748605,83659.0,83647.0,0.02670526]
[1743852922511,0.07207071,83657.0,83652.0,0.083703]
[1743852922707,0.07207071,83657.0,83653.0,0.1401016]
[1743852922911,0.0029114,83655.0,83654.0,0.0837014]
[1743852923498,0.0041914,83655.0,83654.0,0.1395014]
[1743852924209,0.0041914,83655.0,83654.0,0.2175014]
[1743852938918,0.0041914,83655.0,83654.0,0.1958014]
[1743852939120,0.0041914,83655.0,83654.0,0.1395014]
[1743852939323,0.0621914,83655.0,83654.0,0.1395014]
[1743852939515,0.1458918,83655.0,83654.0,0.0837014]
[1743852939714,0.0621914,83655.0,83648.0,0.056]
[1743852939925,0.4445064,83649.0,83648.0,0.1397074]
[1743852940219,0.36204001,83649.0,83648.0,0.1397074]
[1743852940419,0.53424001,83649.0,83648.0,0.0837074]
[1743852940832,0.53715141,83649.0,83648.0,0.0837074]
[1743852941222,0.53715141,83649.0,83648.0,0.0647074]
[1743852941733,0.53715141,83649.0,83648.0,0.1207074]
[1743852945134,0.53715141,83649.0,83648.0,0.0647074]
[1743852950825,0.17635141,83649.0,83648.0,0.0647074]
[1743852951026,0.53715141,83649.0,83648.0,0.0647074]